[Event "*** Titled Tuesday 3|2 Blitz"]
[Site "Chess.com"]
[Date "2016.07.05"]
[Round "2"]
[White "LaStreetCmaMaison"]
[Black "RobertRis"]
[Result "1-0"]
[WhiteElo "2426"]
[BlackElo "2429"]
[TimeControl "180+2"]
[EndTime "11:21:40 PDT"]
[Termination "LaStreetCmaMaison won on time"]

1. Nf3 {[%clk 0:03:01.9]} 1... d5 {[%clk 0:02:59.1]} 2. g3 {[%clk 0:03:02.4]}
2... g6 {[%clk 0:03:00.4]} 3. Bg2 {[%clk 0:03:02.6]} 3... Bg7 {[%clk 0:03:01.6]}
4. O-O {[%clk 0:03:04.3]} 4... e5 {[%clk 0:03:02.8]} 5. c4 {[%clk 0:03:05.4]}
5... dxc4 {[%clk 0:03:00.4]} 6. Qa4+ {[%clk 0:03:04.5]} 6... Nc6 {[%clk
0:03:01]} 7. Qxc4 {[%clk 0:03:03]} 7... h6 {[%clk 0:02:48.3]} 8. Nc3 {[%clk
0:03:01.1]} 8... Nge7 {[%clk 0:02:45.2]} 9. d3 {[%clk 0:02:54.2]} 9... Be6
{[%clk 0:02:43]} 10. Qa4 {[%clk 0:02:54.3]} 10... O-O {[%clk 0:02:41.5]} 11. Be3
{[%clk 0:02:52]} 11... Qd7 {[%clk 0:02:28.2]} 12. Rfc1 {[%clk 0:02:51.1]} 12...
Rfd8 {[%clk 0:02:27.7]} 13. Ne4 {[%clk 0:02:48.3]} 13... Nf5 {[%clk 0:01:43.8]}
14. Nc5 {[%clk 0:02:43.9]} 14... Qc8 {[%clk 0:01:41.1]} 15. Nxe6 {[%clk
0:02:40.6]} 15... Qxe6 {[%clk 0:01:41.4]} 16. Nd2 {[%clk 0:02:36.5]} 16... Ncd4
{[%clk 0:01:27]} 17. Bxd4 {[%clk 0:02:18.8]} 17... Nxd4 {[%clk 0:01:24.4]} 18.
Qd1 {[%clk 0:02:07.7]} 18... c6 {[%clk 0:01:24.3]} 19. Ne4 {[%clk 0:02:06.2]}
19... Bf8 {[%clk 0:01:20]} 20. h4 {[%clk 0:01:53.3]} 20... f5 {[%clk 0:01:11.4]}
21. Nc5 {[%clk 0:01:50.4]} 21... Bxc5 {[%clk 0:01:12.3]} 22. Rxc5 {[%clk
0:01:52.3]} 22... Rd7 {[%clk 0:01:11.6]} 23. e3 {[%clk 0:01:44.2]} 23... Nb5
{[%clk 0:01:12.4]} 24. a4 {[%clk 0:01:42.8]} 24... Nc7 {[%clk 0:01:11.5]} 25.
Rac1 {[%clk 0:01:41]} 25... Rad8 {[%clk 0:01:11.4]} 26. R5c3 {[%clk 0:01:36.2]}
26... a5 {[%clk 0:01:04.2]} 27. h5 {[%clk 0:01:33.3]} 27... g5 {[%clk
0:01:04.9]} 28. Bf1 {[%clk 0:01:24]} 28... Kg7 {[%clk 0:00:59.2]} 29. Rc5 {[%clk
0:01:23.8]} 29... f4 {[%clk 0:00:47.6]} 30. Qf3 {[%clk 0:01:20.2]} 30... Nd5
{[%clk 0:00:32.5]} 31. exf4 {[%clk 0:01:13.7]} 31... exf4 {[%clk 0:00:32.2]} 32.
Qe4 {[%clk 0:01:05.2]} 32... Qf6 {[%clk 0:00:07]} 33. Rxa5 {[%clk 0:00:48.8]}
33... Re7 {[%clk 0:00:08.3]} 34. Qf3 {[%clk 0:00:45.2]} 34... fxg3 {[%clk
0:00:09.1]} 35. Qxf6+ {[%clk 0:00:45.5]} 35... Nxf6 {[%clk 0:00:10.3]} 36. fxg3
{[%clk 0:00:46.1]} 36... Nxh5 {[%clk 0:00:12]} 37. Kh2 {[%clk 0:00:42.5]} 37...
Nf6 {[%clk 0:00:13.4]} 38. Ra7 {[%clk 0:00:42.2]} 38... Rd4 {[%clk 0:00:13.4]}
39. Rxc6 {[%clk 0:00:35.9]} 39... bxc6 {[%clk 0:00:11.9]} 40. Rxe7+ {[%clk
0:00:36.5]} 40... Kg6 {[%clk 0:00:13.8]} 41. Ra7 {[%clk 0:00:37.5]} 41... Rb4
{[%clk 0:00:13.6]} 42. a5 {[%clk 0:00:32.6]} 42... Rxb2+ {[%clk 0:00:14.5]} 43.
Kg1 {[%clk 0:00:34.1]} 43... Kf5 {[%clk 0:00:15.5]} 44. a6 {[%clk 0:00:33.8]}
44... Ra2 {[%clk 0:00:16.1]} 45. d4 {[%clk 0:00:35.4]} 45... Nd5 {[%clk
0:00:16.2]} 46. Rf7+ {[%clk 0:00:20]} 46... Kg4 {[%clk 0:00:16.4]} 47. Bc4
{[%clk 0:00:17.5]} 47... Ra1+ {[%clk 0:00:16.3]} 48. Kf2 {[%clk 0:00:18.8]}
48... Nc3 {[%clk 0:00:14.9]} 49. Be6+ {[%clk 0:00:16.8]} 49... Kh5 {[%clk
0:00:15.8]} 50. g4+ {[%clk 0:00:12.8]} 50... Kh4 {[%clk 0:00:17.2]} 51. Rh7
{[%clk 0:00:14.1]} 51... Ra2+ {[%clk 0:00:15.4]} 52. Kf3 {[%clk 0:00:14.8]} 1-0

[Event "*** Titled Tuesday 3|2 Blitz"]
[Site "Chess.com"]
[Date "2016.07.05"]
[Round "2"]
[White "Izoria123"]
[Black "kpio91"]
[Result "1-0"]
[WhiteElo "2593"]
[BlackElo "2544"]
[TimeControl "180+2"]
[EndTime "11:21:41 PDT"]
[Termination "Izoria123 won by resignation"]

1. e4 {[%clk 0:02:56.3]} 1... e6 {[%clk 0:02:58.1]} 2. d4 {[%clk 0:02:54.7]}
2... d5 {[%clk 0:02:59.7]} 3. Nc3 {[%clk 0:02:56.2]} 3... Bb4 {[%clk 0:03:00.2]}
4. e5 {[%clk 0:02:56.8]} 4... c5 {[%clk 0:03:01.3]} 5. a3 {[%clk 0:02:57.9]}
5... Bxc3+ {[%clk 0:03:02]} 6. bxc3 {[%clk 0:02:59.8]} 6... Ne7 {[%clk
0:03:03.5]} 7. h4 {[%clk 0:02:58.6]} 7... Qc7 {[%clk 0:03:02.7]} 8. h5 {[%clk
0:02:58.2]} 8... h6 {[%clk 0:03:03.7]} 9. Bd3 {[%clk 0:02:42.5]} 9... Bd7 {[%clk
0:03:03.6]} 10. Qg4 {[%clk 0:02:37.9]} 10... cxd4 {[%clk 0:02:44.4]} 11. Ne2
{[%clk 0:02:37.5]} 11... dxc3 {[%clk 0:02:34.9]} 12. Qxg7 {[%clk 0:02:35.2]}
12... Rg8 {[%clk 0:02:35.8]} 13. Qxh6 {[%clk 0:02:36.4]} 13... Nbc6 {[%clk
0:02:36]} 14. Bf4 {[%clk 0:02:30.9]} 14... Nxe5 {[%clk 0:02:18.6]} 15. Kf1
{[%clk 0:02:29]} 15... O-O-O {[%clk 0:02:16.7]} 16. Qf6 {[%clk 0:02:25.8]} 16...
N7c6 {[%clk 0:01:52.1]} 17. Rh4 {[%clk 0:01:44.3]} 17... Rdf8 {[%clk 0:01:15.8]}
18. Nd4 {[%clk 0:01:40.4]} 18... Qd8 {[%clk 0:01:13.1]} 19. Qxd8+ {[%clk
0:01:15.2]} 19... Kxd8 {[%clk 0:01:13.6]} 20. Nxc6+ {[%clk 0:01:15.2]} 20...
Nxc6 {[%clk 0:01:14.6]} 21. Bh6 {[%clk 0:00:54.4]} 21... Re8 {[%clk 0:01:13.4]}
22. Bh7 {[%clk 0:00:53.5]} 22... Rh8 {[%clk 0:00:29.6]} 23. Bg5+ {[%clk
0:00:54.4]} 23... Kc8 {[%clk 0:00:29]} 24. Bd3 {[%clk 0:00:54.8]} 24... e5
{[%clk 0:00:20.7]} 25. Bf6 {[%clk 0:00:52.9]} 25... e4 {[%clk 0:00:19.7]} 26.
Bxh8 {[%clk 0:00:50.3]} 26... Rxh8 {[%clk 0:00:20.6]} 27. Be2 {[%clk 0:00:48.9]}
27... f5 {[%clk 0:00:21.7]} 28. Rd1 {[%clk 0:00:45.8]} 28... Ne7 {[%clk
0:00:13.3]} 29. Rh3 {[%clk 0:00:40.7]} 29... Kc7 {[%clk 0:00:14.3]} 30. Rxc3+
{[%clk 0:00:41.5]} 30... Kd6 {[%clk 0:00:16.1]} 31. f3 {[%clk 0:00:41.4]} 31...
Rxh5 {[%clk 0:00:11.7]} 32. fxe4 {[%clk 0:00:40.9]} 32... Rh1+ {[%clk
0:00:13.3]} 33. Kf2 {[%clk 0:00:42]} 33... Rxd1 {[%clk 0:00:14.9]} 34. e5+
{[%clk 0:00:42.4]} 34... Kxe5 {[%clk 0:00:15.9]} 35. Bxd1 {[%clk 0:00:44.1]}
35... Bc6 {[%clk 0:00:12.8]} 36. Re3+ {[%clk 0:00:44.3]} 36... Kf6 {[%clk
0:00:13.5]} 37. c3 {[%clk 0:00:42.6]} 37... Ng6 {[%clk 0:00:14.3]} 38. Bh5
{[%clk 0:00:41.9]} 38... Ne5 {[%clk 0:00:14.5]} 39. Be2 {[%clk 0:00:42.4]} 39...
Bd7 {[%clk 0:00:12]} 40. Rh3 {[%clk 0:00:42.5]} 40... Bc6 {[%clk 0:00:12.3]} 41.
Rh8 {[%clk 0:00:41]} 41... a6 {[%clk 0:00:09.5]} 42. Ke3 {[%clk 0:00:38.6]}
42... Ng6 {[%clk 0:00:05.4]} 43. Rc8 {[%clk 0:00:34.2]} 43... d4+ {[%clk
0:00:06.1]} 44. cxd4 {[%clk 0:00:31.8]} 44... Ne7 {[%clk 0:00:05.7]} 45. Rf8+
{[%clk 0:00:26.2]} 45... Kg7 {[%clk 0:00:06.4]} 46. Rd8 {[%clk 0:00:26.4]} 46...
Bxg2 {[%clk 0:00:07]} 47. Bf3 {[%clk 0:00:27.6]} 47... Bxf3 {[%clk 0:00:06.8]}
48. Kxf3 {[%clk 0:00:28.9]} 48... Kf6 {[%clk 0:00:08.5]} 49. Rd6+ {[%clk
0:00:28.6]} 49... Kf7 {[%clk 0:00:09.2]} 50. Rd7 {[%clk 0:00:29.8]} 50... Ke6
{[%clk 0:00:07.2]} 51. Rxb7 {[%clk 0:00:30.6]} 51... Nc6 {[%clk 0:00:08.9]} 52.
Rb6 {[%clk 0:00:26.3]} 52... Kd5 {[%clk 0:00:09.7]} 53. Rxa6 {[%clk 0:00:27]}
53... Nxd4+ {[%clk 0:00:10.8]} 54. Kf4 {[%clk 0:00:28.3]} 54... Kc4 {[%clk
0:00:05.2]} 55. Ke5 {[%clk 0:00:23.3]} 55... Nc2 {[%clk 0:00:03.1]} 56. Rc6+
{[%clk 0:00:18.2]} 56... Kb3 {[%clk 0:00:02.8]} 57. Rxc2 {[%clk 0:00:19.9]} 1-0

[Event "*** Titled Tuesday 3|2 Blitz"]
[Site "Chess.com"]
[Date "2016.07.05"]
[Round "2"]
[White "Abrito99"]
[Black "PowerThinking2650"]
[Result "1-0"]
[WhiteElo "2320"]
[BlackElo "2135"]
[TimeControl "180+2"]
[EndTime "11:22:03 PDT"]
[Termination "Abrito99 won by resignation"]

1. e4 {[%clk 0:03:01.9]} 1... e5 {[%clk 0:03:00.8]} 2. Nf3 {[%clk 0:03:02.2]}
2... Nc6 {[%clk 0:03:02.3]} 3. Bc4 {[%clk 0:03:03.1]} 3... Nf6 {[%clk
0:03:01.8]} 4. d3 {[%clk 0:03:04.1]} 4... Be7 {[%clk 0:03:02.1]} 5. O-O {[%clk
0:03:04.8]} 5... O-O {[%clk 0:03:02.3]} 6. Re1 {[%clk 0:03:04.7]} 6... d6 {[%clk
0:03:03]} 7. a4 {[%clk 0:03:05.6]} 7... Na5 {[%clk 0:02:55.3]} 8. Ba2 {[%clk
0:03:04.4]} 8... c5 {[%clk 0:02:56.2]} 9. c3 {[%clk 0:03:05.3]} 9... Qc7 {[%clk
0:02:55]} 10. Na3 {[%clk 0:03:06.1]} 10... a6 {[%clk 0:02:44.6]} 11. Bd2 {[%clk
0:02:27.7]} 11... Rb8 {[%clk 0:02:29.9]} 12. b4 {[%clk 0:02:28.6]} 12... Nc6
{[%clk 0:02:27.7]} 13. b5 {[%clk 0:02:18.8]} 13... Nd8 {[%clk 0:02:19.5]} 14.
Rb1 {[%clk 0:02:17.3]} 14... b6 {[%clk 0:02:13.9]} 15. bxa6 {[%clk 0:02:06.2]}
15... Bxa6 {[%clk 0:02:14.4]} 16. Bc4 {[%clk 0:02:07.2]} 16... Bxc4 {[%clk
0:02:12.7]} 17. Nxc4 {[%clk 0:02:08.2]} 17... Ne6 {[%clk 0:02:12.4]} 18. Qb3
{[%clk 0:02:03.3]} 18... Nd7 {[%clk 0:02:05.2]} 19. Ne3 {[%clk 0:01:38.1]} 19...
Nf6 {[%clk 0:02:03.1]} 20. g3 {[%clk 0:01:36]} 20... Ra8 {[%clk 0:02:03.4]} 21.
Ra1 {[%clk 0:01:26.6]} 21... Ra6 {[%clk 0:02:03]} 22. Ra2 {[%clk 0:01:22.4]}
22... Rfa8 {[%clk 0:02:03.5]} 23. Rea1 {[%clk 0:01:23.1]} 23... Qc6 {[%clk
0:02:03.6]} 24. Nd5 {[%clk 0:01:09.7]} 24... Bd8 {[%clk 0:02:02.3]} 25. Ne1
{[%clk 0:01:05.8]} 25... h5 {[%clk 0:01:55.2]} 26. Nc2 {[%clk 0:01:05.6]} 26...
h4 {[%clk 0:01:55.9]} 27. Nce3 {[%clk 0:01:04.2]} 27... hxg3 {[%clk 0:01:54.4]}
28. hxg3 {[%clk 0:01:04.8]} 28... Qb7 {[%clk 0:01:37.9]} 29. Nc4 {[%clk
0:00:51.1]} 29... Nxd5 {[%clk 0:01:26.9]} 30. Nxd6 {[%clk 0:00:50.3]} 30... Qd7
{[%clk 0:00:59.9]} 31. Qxd5 {[%clk 0:00:50.9]} 31... Rxa4 {[%clk 0:01:00.1]} 32.
Rxa4 {[%clk 0:00:40.4]} 32... Rxa4 {[%clk 0:01:00.3]} 33. Rxa4 {[%clk
0:00:41.7]} 33... Qxa4 {[%clk 0:01:00.9]} 34. Be3 {[%clk 0:00:38.1]} 34... Qd1+
{[%clk 0:00:59.1]} 35. Kg2 {[%clk 0:00:39.3]} 35... Bf6 {[%clk 0:00:55.9]} 36.
Nc4 {[%clk 0:00:33.5]} 36... Nf4+ {[%clk 0:00:51]} 37. Bxf4 {[%clk 0:00:19.6]}
37... exf4 {[%clk 0:00:51.6]} 38. e5 {[%clk 0:00:21.2]} 38... Bg5 {[%clk
0:00:46.3]} 39. Qa8+ {[%clk 0:00:22.2]} 39... Kh7 {[%clk 0:00:45.3]} 40. Qe4+
{[%clk 0:00:23.9]} 40... g6 {[%clk 0:00:46.4]} 41. Nxb6 {[%clk 0:00:24.1]} 41...
fxg3 {[%clk 0:00:37.8]} 42. fxg3 {[%clk 0:00:25]} 42... Qc2+ {[%clk 0:00:35]}
43. Kh3 {[%clk 0:00:26.5]} 43... Qxc3 {[%clk 0:00:34]} 44. Nd5 {[%clk
0:00:24.8]} 44... Qc1 {[%clk 0:00:29.8]} 45. Qf3 {[%clk 0:00:25.2]} 45... Kg7
{[%clk 0:00:29]} 46. Nc7 {[%clk 0:00:25.1]} 46... Qe3 {[%clk 0:00:25.6]} 47.
Ne8+ {[%clk 0:00:20.7]} 47... Kg8 {[%clk 0:00:22.8]} 48. Qxe3 {[%clk 0:00:17.7]}
48... Bxe3 {[%clk 0:00:23]} 49. Kg4 {[%clk 0:00:19.4]} 49... Kf8 {[%clk
0:00:18.8]} 50. Nf6 {[%clk 0:00:21.1]} 50... Bd4 {[%clk 0:00:17.3]} 51. Kf3
{[%clk 0:00:22.4]} 51... Ke7 {[%clk 0:00:18.1]} 52. Ke4 {[%clk 0:00:23.6]} 52...
Ke6 {[%clk 0:00:19]} 53. Ng4 {[%clk 0:00:24.1]} 53... f5+ {[%clk 0:00:18.5]} 54.
exf6 {[%clk 0:00:25.2]} 54... Bxf6 {[%clk 0:00:19.2]} 55. Nxf6 {[%clk
0:00:26.9]} 55... Kxf6 {[%clk 0:00:20.3]} 56. Kd5 {[%clk 0:00:28.6]} 56... Kg5
{[%clk 0:00:21.3]} 57. Kxc5 {[%clk 0:00:30.3]} 57... Kg4 {[%clk 0:00:22.7]} 58.
d4 {[%clk 0:00:32.1]} 58... Kxg3 {[%clk 0:00:23.9]} 59. d5 {[%clk 0:00:33.8]}
1-0

[Event "*** Titled Tuesday 3|2 Blitz"]
[Site "Chess.com"]
[Date "2016.07.05"]
[Round "2"]
[White "bilelou"]
[Black "cool64chess"]
[Result "1/2-1/2"]
[WhiteElo "2259"]
[BlackElo "2210"]
[TimeControl "180+2"]
[EndTime "11:22:07 PDT"]
[Termination "Game drawn - insufficient material"]

1. d4 {[%clk 0:02:56.1]} 1... d5 {[%clk 0:02:58.9]} 2. c4 {[%clk 0:02:57.3]}
2... e6 {[%clk 0:02:59.1]} 3. Nf3 {[%clk 0:02:58.5]} 3... Nf6 {[%clk 0:02:59.4]}
4. g3 {[%clk 0:02:59.7]} 4... Be7 {[%clk 0:03:00]} 5. Bg2 {[%clk 0:03:01]} 5...
O-O {[%clk 0:03:01]} 6. O-O {[%clk 0:03:01.1]} 6... dxc4 {[%clk 0:03:01.7]} 7.
Ne5 {[%clk 0:03:00.3]} 7... Nc6 {[%clk 0:03:02.2]} 8. Nxc6 {[%clk 0:03:00.7]}
8... bxc6 {[%clk 0:03:02.3]} 9. Na3 {[%clk 0:03:02.4]} 9... Bxa3 {[%clk
0:02:49.2]} 10. bxa3 {[%clk 0:03:02.9]} 10... Nd5 {[%clk 0:02:49.6]} 11. Qa4
{[%clk 0:02:58.1]} 11... Rb8 {[%clk 0:02:42]} 12. Qxc4 {[%clk 0:02:56.3]} 12...
Rb6 {[%clk 0:02:34.2]} 13. Rd1 {[%clk 0:02:46.9]} 13... Ba6 {[%clk 0:02:31]} 14.
Qc2 {[%clk 0:02:46.8]} 14... Qd7 {[%clk 0:02:24.4]} 15. e4 {[%clk 0:02:14.2]}
15... Nf6 {[%clk 0:02:19.5]} 16. Bg5 {[%clk 0:02:12.6]} 16... Rfb8 {[%clk
0:02:17.8]} 17. Rac1 {[%clk 0:02:11.6]} 17... Rb2 {[%clk 0:00:36.6]} 18. Qxc6
{[%clk 0:02:00.5]} 18... Qxc6 {[%clk 0:00:35.9]} 19. Rxc6 {[%clk 0:02:01.2]}
19... Bb7 {[%clk 0:00:36.4]} 20. Rxc7 {[%clk 0:01:39.1]} 20... Bxe4 {[%clk
0:00:36.6]} 21. Bf1 {[%clk 0:01:30.3]} 21... Ne8 {[%clk 0:00:19.6]} 22. Rc3
{[%clk 0:01:16.4]} 22... h6 {[%clk 0:00:18.7]} 23. Be7 {[%clk 0:01:14.1]} 23...
Rxa2 {[%clk 0:00:18.5]} 24. Bc5 {[%clk 0:01:14.4]} 24... a5 {[%clk 0:00:17.8]}
25. Re1 {[%clk 0:01:13.9]} 25... Bd5 {[%clk 0:00:18.5]} 26. h4 {[%clk
0:01:15.2]} 26... Rbb2 {[%clk 0:00:19.3]} 27. f3 {[%clk 0:01:06.2]} 27... Nf6
{[%clk 0:00:15.2]} 28. Rce3 {[%clk 0:01:04.6]} 28... Nh5 {[%clk 0:00:15.7]} 29.
Bd6 {[%clk 0:01:05.8]} 29... g6 {[%clk 0:00:14.4]} 30. g4 {[%clk 0:01:06.1]}
30... Ng7 {[%clk 0:00:15.5]} 31. Be5 {[%clk 0:01:06.3]} 31... h5 {[%clk
0:00:16.1]} 32. R1e2 {[%clk 0:00:52.2]} 32... hxg4 {[%clk 0:00:15.2]} 33. fxg4
{[%clk 0:00:51.2]} 33... Rxe2 {[%clk 0:00:13.9]} 34. Bxe2 {[%clk 0:00:50.9]}
34... f5 {[%clk 0:00:11.7]} 35. h5 {[%clk 0:00:48.1]} 35... gxh5 {[%clk
0:00:11.4]} 36. gxh5 {[%clk 0:00:49.2]} 36... Kh7 {[%clk 0:00:09.9]} 37. Kf1
{[%clk 0:00:41.4]} 37... Ra1+ {[%clk 0:00:08.5]} 38. Kf2 {[%clk 0:00:42.5]}
38... Ra2 {[%clk 0:00:10.1]} 39. Rc3 {[%clk 0:00:43.6]} 39... Be4 {[%clk
0:00:08.1]} 40. Rc7 {[%clk 0:00:43.9]} 40... Bd3 {[%clk 0:00:09.4]} 41. Rxg7+
{[%clk 0:00:43.6]} 41... Kh6 {[%clk 0:00:10.4]} 42. Ke3 {[%clk 0:00:36.3]} 42...
Bxe2 {[%clk 0:00:11.1]} 43. Rg6+ {[%clk 0:00:35.5]} 43... Kxh5 {[%clk
0:00:11.5]} 44. Rxe6 {[%clk 0:00:37.1]} 44... Bg4 {[%clk 0:00:12.6]} 45. Re7
{[%clk 0:00:37.2]} 45... Rxa3+ {[%clk 0:00:13.1]} 46. Kf2 {[%clk 0:00:37.5]}
46... Rf3+ {[%clk 0:00:13.9]} 47. Kg2 {[%clk 0:00:38.4]} 47... Rb3 {[%clk
0:00:13.1]} 48. d5 {[%clk 0:00:38.3]} 48... Rd3 {[%clk 0:00:12.5]} 49. d6 {[%clk
0:00:38.8]} 49... Kg6 {[%clk 0:00:12.2]} 50. Re6+ {[%clk 0:00:38.5]} 50... Kf7
{[%clk 0:00:12.9]} 51. Re7+ {[%clk 0:00:39.8]} 51... Kg6 {[%clk 0:00:14.3]} 52.
Rg7+ {[%clk 0:00:40.2]} 52... Kh6 {[%clk 0:00:14.4]} 53. Ra7 {[%clk 0:00:41.8]}
53... Rd5 {[%clk 0:00:11.6]} 54. Bf4+ {[%clk 0:00:42.1]} 54... Kg6 {[%clk
0:00:12.6]} 55. d7 {[%clk 0:00:43.4]} 55... Kf6 {[%clk 0:00:11.7]} 56. Bg3
{[%clk 0:00:42.6]} 56... Rd2+ {[%clk 0:00:12.2]} 57. Kf1 {[%clk 0:00:43.2]}
57... Ke6 {[%clk 0:00:13.4]} 58. Rxa5 {[%clk 0:00:34.3]} 58... Kxd7 {[%clk
0:00:13.1]} 59. Ra7+ {[%clk 0:00:34.4]} 59... Ke6 {[%clk 0:00:14.2]} 60. Ra5
{[%clk 0:00:35.9]} 60... Rd5 {[%clk 0:00:13.8]} 61. Rxd5 {[%clk 0:00:36.5]}
61... Kxd5 {[%clk 0:00:15.7]} 62. Bh2 {[%clk 0:00:38.1]} 62... Ke4 {[%clk
0:00:16.8]} 63. Bb8 {[%clk 0:00:38.4]} 63... f4 {[%clk 0:00:18]} 64. Bxf4 {[%clk
0:00:39.4]} 64... Kxf4 {[%clk 0:00:19.1]} 1/2-1/2

[Event "*** Titled Tuesday 3|2 Blitz"]
[Site "Chess.com"]
[Date "2016.07.05"]
[Round "2"]
[White "stefanodinn"]
[Black "Mornar1951"]
[Result "1/2-1/2"]
[WhiteElo "2251"]
[BlackElo "2494"]
[TimeControl "180+2"]
[EndTime "11:22:18 PDT"]
[Termination "Game drawn by agreement"]

1. e4 {[%clk 0:03:00.2]} 1... e6 {[%clk 0:02:59.7]} 2. d4 {[%clk 0:03:00.3]}
2... d5 {[%clk 0:03:00.9]} 3. Nd2 {[%clk 0:03:00.6]} 3... c5 {[%clk 0:03:01.1]}
4. exd5 {[%clk 0:02:59.7]} 4... Qxd5 {[%clk 0:03:01.6]} 5. dxc5 {[%clk
0:02:54.4]} 5... Bxc5 {[%clk 0:03:01.3]} 6. Ngf3 {[%clk 0:02:55.4]} 6... Nf6
{[%clk 0:03:01.8]} 7. Bc4 {[%clk 0:02:55.8]} 7... Qc6 {[%clk 0:03:03.5]} 8. Qe2
{[%clk 0:02:56.7]} 8... a6 {[%clk 0:03:04.2]} 9. O-O {[%clk 0:02:54.6]} 9... O-O
{[%clk 0:03:04.3]} 10. Nb3 {[%clk 0:02:54.4]} 10... Bd6 {[%clk 0:03:03]} 11. Bd3
{[%clk 0:02:44.2]} 11... Nbd7 {[%clk 0:02:56.4]} 12. Bg5 {[%clk 0:02:32.6]}
12... b5 {[%clk 0:02:51.2]} 13. c4 {[%clk 0:02:28.7]} 13... b4 {[%clk
0:02:46.4]} 14. Rac1 {[%clk 0:02:13.3]} 14... h6 {[%clk 0:02:40.6]} 15. c5
{[%clk 0:02:06.7]} 15... hxg5 {[%clk 0:02:33.7]} 16. cxd6 {[%clk 0:02:06.6]}
16... Qxd6 {[%clk 0:02:35.6]} 17. Nxg5 {[%clk 0:01:59.4]} 17... Bb7 {[%clk
0:02:36.7]} 18. Rfd1 {[%clk 0:01:53]} 18... Qf4 {[%clk 0:02:37]} 19. Qd2 {[%clk
0:01:38.1]} 19... Qxd2 {[%clk 0:02:28.7]} 20. Rxd2 {[%clk 0:01:38.4]} 20... Rfd8
{[%clk 0:02:23.8]} 21. Rcd1 {[%clk 0:01:32.6]} 21... Bd5 {[%clk 0:02:23.2]} 22.
f3 {[%clk 0:01:14.7]} 22... a5 {[%clk 0:02:21.2]} 23. Kf2 {[%clk 0:01:06.9]}
23... a4 {[%clk 0:02:21.4]} 24. Nc1 {[%clk 0:01:07.3]} 24... a3 {[%clk 0:02:20]}
25. bxa3 {[%clk 0:01:03.2]} 25... Rxa3 {[%clk 0:02:18.7]} 26. Ne4 {[%clk
0:00:59.2]} 26... Rda8 {[%clk 0:02:14.2]} 27. Nxf6+ {[%clk 0:00:57.9]} 27...
Nxf6 {[%clk 0:02:14.7]} 28. Rb2 {[%clk 0:00:56.7]} 28... Rb8 {[%clk 0:02:06]}
29. Rdd2 {[%clk 0:00:48.4]} 29... g6 {[%clk 0:02:05]} 30. Ne2 {[%clk 0:00:46.1]}
30... Kg7 {[%clk 0:01:59]} 31. Nf4 {[%clk 0:00:46.5]} 31... g5 {[%clk
0:01:59.2]} 32. Nxd5 {[%clk 0:00:41]} 32... Nxd5 {[%clk 0:02:01.1]} 33. Bc4
{[%clk 0:00:38.4]} 33... Nc3 {[%clk 0:02:00]} 34. Bb3 {[%clk 0:00:21]} 34... Rb7
{[%clk 0:01:56.6]} 35. Ke3 {[%clk 0:00:21.2]} 35... Kf6 {[%clk 0:01:50.7]} 36.
g3 {[%clk 0:00:21.5]} 36... Rba7 {[%clk 0:01:49.1]} 37. Kd4 {[%clk 0:00:19.4]}
37... Rc7 {[%clk 0:01:42.8]} 38. Rbc2 {[%clk 0:00:17.3]} 38... Ra5 {[%clk
0:01:40.5]} 39. Ke3 {[%clk 0:00:18.3]} 39... Re5+ {[%clk 0:01:36.6]} 40. Kf2
{[%clk 0:00:19.2]} 40... Rb7 {[%clk 0:01:32.3]} 41. Rd4 {[%clk 0:00:16.5]} 41...
Ra5 {[%clk 0:01:31.4]} 42. Rcd2 {[%clk 0:00:17.5]} 42... Ra3 {[%clk 0:01:29.1]}
43. f4 {[%clk 0:00:18.2]} 43... g4 {[%clk 0:01:29.6]} 44. Kg2 {[%clk 0:00:18.2]}
44... Ra5 {[%clk 0:01:25.6]} 45. h3 {[%clk 0:00:19.2]} 45... gxh3+ {[%clk
0:01:26.2]} 46. Kxh3 {[%clk 0:00:20.3]} 46... Ra8 {[%clk 0:01:23.6]} 47. Kg2
{[%clk 0:00:21]} 47... Rg8 {[%clk 0:01:22.9]} 48. Kf3 {[%clk 0:00:22.1]} 48...
Rh8 {[%clk 0:01:23.8]} 49. R2d3 {[%clk 0:00:19.4]} 49... Rh2 {[%clk 0:01:23.3]}
50. Rd2 {[%clk 0:00:18.8]} 50... Rh1 {[%clk 0:01:24.4]} 51. Kg2 {[%clk
0:00:18.8]} 51... Ra1 {[%clk 0:01:23.9]} 52. Kf3 {[%clk 0:00:19.3]} 52... Rc1
{[%clk 0:01:19.3]} 53. Kf2 {[%clk 0:00:19.8]} 53... Rb6 {[%clk 0:01:17.7]} 54.
Kf3 {[%clk 0:00:20.9]} 54... Ra1 {[%clk 0:01:16.6]} 55. Kg2 {[%clk 0:00:21.8]}
55... Kg6 {[%clk 0:01:14.1]} 56. Kf3 {[%clk 0:00:22.9]} 56... f5 {[%clk
0:01:15.2]} 57. Rd6 {[%clk 0:00:20.8]} 57... Rxd6 {[%clk 0:01:15]} 58. Rxd6
{[%clk 0:00:21.9]} 58... Ne4 {[%clk 0:01:08.4]} 59. Rxe6+ {[%clk 0:00:22.1]}
59... Kg7 {[%clk 0:01:09.2]} 60. Rb6 {[%clk 0:00:20.7]} 60... Rf1+ {[%clk
0:01:06.3]} 61. Ke3 {[%clk 0:00:14.1]} 61... Re1+ {[%clk 0:01:05.3]} 62. Kd4
{[%clk 0:00:14.2]} 62... Nxg3 {[%clk 0:01:06.5]} 63. Rxb4 {[%clk 0:00:13.7]}
63... Re4+ {[%clk 0:01:03.4]} 64. Kc5 {[%clk 0:00:14.5]} 64... Rxb4 {[%clk
0:01:04.5]} 65. Kxb4 {[%clk 0:00:15.5]} 65... Ne2 {[%clk 0:01:06.2]} 66. Bc2
{[%clk 0:00:15]} 66... Nxf4 {[%clk 0:01:05]} 67. Bxf5 {[%clk 0:00:15.9]} 67...
Kf6 {[%clk 0:01:06.4]} 68. Be4 {[%clk 0:00:15.6]} 68... Ke5 {[%clk 0:01:06.9]}
69. Bf3 {[%clk 0:00:16.6]} 69... Kd6 {[%clk 0:01:08]} 70. Kb5 {[%clk 0:00:17.6]}
70... Ne6 {[%clk 0:01:07.8]} 71. Kb6 {[%clk 0:00:17.8]} 71... Nc5 {[%clk
0:01:08.9]} 72. Bd1 {[%clk 0:00:15.8]} 72... Kd5 {[%clk 0:01:06.3]} 73. Bf3+
{[%clk 0:00:14.6]} 73... Kc4 {[%clk 0:01:04.9]} 74. Bc6 {[%clk 0:00:14.9]} 74...
Kb4 {[%clk 0:01:05.5]} 75. Bd5 {[%clk 0:00:15.2]} 75... Na4+ {[%clk 0:01:06.2]}
76. Kc7 {[%clk 0:00:15.2]} 76... Nc3 {[%clk 0:01:07.5]} 77. Be6 {[%clk
0:00:14.9]} 1/2-1/2